{"text_format":"3","workbook":"xlsx","n_sheets":6,"sheets":["התחלה","לוח מחוונים","הוצאות והכנסות","דוח תקציב","רשימות נתונים","PivotTable של קטגוריה"],"not_rendered":{"charts":3,"defined_names":23,"pivot_tables":2},"read":"whole","date_system":"1900"}

{"sheet":"התחלה","index":0,"n_rows":8,"n_cols":2,"rows_kept":8}
[null,"אודות התבנית"]
[null,"השתמש בתבנית זו כדי ליצור תקציב ביתי חצי חודשי."]
[null,"גליון העבודה 'לוח מחוונים' מכיל תרשימים עבור סכומים כוללים חודשיים ושנתיים וטבלה עבור הכנסות והוצאות דו-שבועיות."]
[null,"הזן קטגוריות בגליון העבודה 'רשימות נתונים' וערכים בגליון העבודה 'הכנסות והוצאות'."]
[null,"רענן את ה- PivotTable בגליון העבודה 'דוח תקציב'."]
[null,"הערה:"]
[null,"הוראות נוספות סופקו בעמודה A בכל גליונות העבודה. טקסט זה הוסתר במכוון. כדי להסיר את הטקסט, בחר את עמודה A ולאחר מכן בחר 'מחק'. "]
[null,"לקבלת מידע נוסף על הטבלה, הקש SHIFT ולאחר מכן F10 בתוך טבלה, בחר את האפשרות 'טבלה' ולאחר מכן בחר 'טקסט חלופי'. עבור טבלאות PivotTable, הקש SHIFT ולאחר מכן F10 בתוך טבלה, בחר 'אפשרויות PivotTable' ולאחר מכן בחר את הכרטיסיה 'טקסט חלופי'."]

{"sheet":"לוח מחוונים","index":1,"n_rows":12,"n_cols":15,"rows_kept":12,"merged":[[0,1,0,13],[1,2,1,7]]}
["צור לוח מחוונים עבור סכומים כוללים חודשיים ושנתיים ועבור הכנסות והוצאות דו-שבועיות בגליון עבודה זה. הוראות מועילות לגבי אופן השימוש בגליון עבודה זה מופיעות בתאים שבעמודה זו. הכותרת של חוברת עבודה זו נמצאת בתא משמאל והכותרת של גליון העבודה נמצאת בתא O1.","תקציב ביתי חצי-חודשי",{"$nulls":12},"לוח מחוונים"]
["בחר מחוון בתא C2 כדי לשנות את החודש בתא משמאל, וכדי לשנות את השנה בתא I2, בחר את המחוון בתא J2.",{"$f":"CHOOSE(מספר_חודש,\"ינואר\",\"פברואר\",\"מרץ\",\"אפריל\",\"מאי\",\"יוני\",\"יולי\",\"אוגוסט\",\"ספטמבר\",\"אוקטובר\",\"נובמבר\",\"דצמבר\")","v":"דצמבר"},12,{"$nulls":5},{"$f":"YEAR(TODAY())","v":2022}]
["התווית 'סכומים כוללים חודשיים' נמצאת בתא משמאל והתווית 'סכומים כוללים שנתיים' נמצאת בתא I3.","סכומים חודשיים כוללים",{"$nulls":6},"סכומים כוללים שנתיים"]
["תרשים עמודות המשווה בין הסכומים הכוללים של ההכנסות החודשיות לבין הסכומים הכוללים של ההוצאות החודשיות נמצא בתא C4, ותרשים עמודות המשווה בין הסכומים הכוללים של ההכנסות השנתיות לסכומים הכוללים של ההוצאות השנתיות נמצא בתא J4. ההוראה הבאה מופיעה בתא A8.","הכנסות",null,{"$f":"סכומי_הוצאות_חודשיות","v":{"v":0,"d":"₪ 0"}},{"$nulls":4},"הכנסות",null,null,{"$f":"סכומי_הוצאות_שנתיות","v":{"v":10742,"d":"₪ 10,742"}}]
[null,"הוצאות",null,{"$f":"סכומי_הכנסה_חודשית","v":{"v":0,"d":"₪ 0"}},{"$nulls":4},"הוצאות",null,null,{"$f":"סכומי_הכנסה_שנתית","v":{"v":13200,"d":"₪ 13,200"}}]
[]
[]
["טבלת לוח המחוונים המתחילה בתא משמאל מתעדכנת באופן אוטומטי.","קטגוריה","ינואר","פברואר","מרץ","אפריל","מאי","יוני","יולי","אוגוסט","ספטמבר","אוקטובר","נובמבר","דצמבר","תרשים זעיר"]
[null,"הכנסות בימים 15-1",{"$f":"SUMIFS(הכנסות[סכום],הכנסות[תאריך],\"<=\"&DtMiddle,הכנסות[תאריך],\">=\"&DtStart)","v":{"v":0,"d":"₪ 0.00"}},{"$f":"SUMIFS(הכנסות[סכום],הכנסות[תאריך],\"<=\"&DtMiddle,הכנסות[תאריך],\">=\"&DtStart)","v":{"v":0,"d":"₪ 0.00"}},{"$f":"SUMIFS(הכנסות[סכום],הכנסות[תאריך],\"<=\"&DtMiddle,הכנסות[תאריך],\">=\"&DtStart)","v":{"v":1300,"d":"₪ 1,300.00"}},{"$f":"SUMIFS(הכנסות[סכום],הכנסות[תאריך],\"<=\"&DtMiddle,הכנסות[תאריך],\">=\"&DtStart)","v":{"v":2600,"d":"₪ 2,600.00"}},{"$f":"SUMIFS(הכנסות[סכום],הכנסות[תאריך],\"<=\"&DtMiddle,הכנסות[תאריך],\">=\"&DtStart)","v":{"v":2600,"d":"₪ 2,600.00"}},{"$f":"SUMIFS(הכנסות[סכום],הכנסות[תאריך],\"<=\"&DtMiddle,הכנסות[תאריך],\">=\"&DtStart)","v":{"v":0,"d":"₪ 0.00"}},{"$f":"SUMIFS(הכנסות[סכום],הכנסות[תאריך],\"<=\"&DtMiddle,הכנסות[תאריך],\">=\"&DtStart)","v":{"v":0,"d":"₪ 0.00"}},{"$f":"SUMIFS(הכנסות[סכום],הכנסות[תאריך],\"<=\"&DtMiddle,הכנסות[תאריך],\">=\"&DtStart)","v":{"v":0,"d":"₪ 0.00"}},{"$f":"SUMIFS(הכנסות[סכום],הכנסות[תאריך],\"<=\"&DtMiddle,הכנסות[תאריך],\">=\"&DtStart)","v":{"v":0,"d":"₪ 0.00"}},{"$f":"SUMIFS(הכנסות[סכום],הכנסות[תאריך],\"<=\"&DtMiddle,הכנסות[תאריך],\">=\"&DtStart)","v":{"v":0,"d":"₪ 0.00"}},{"$f":"SUMIFS(הכנסות[סכום],הכנסות[תאריך],\"<=\"&DtMiddle,הכנסות[תאריך],\">=\"&DtStart)","v":{"v":0,"d":"₪ 0.00"}},{"$f":"SUMIFS(הכנסות[סכום],הכנסות[תאריך],\"<=\"&DtMiddle,הכנסות[תאריך],\">=\"&DtStart)","v":{"v":0,"d":"₪ 0.00"}}]
[null,"הכנסות בימים 16-סוף החודש",{"$f":"SUMIFS(הכנסות[סכום],הכנסות[תאריך],\"<=\"&DtEnd,הכנסות[תאריך],\">=\"&DtMiddle+1)","v":{"v":0,"d":"₪ 0.00"}},{"$f":"SUMIFS(הכנסות[סכום],הכנסות[תאריך],\"<=\"&DtEnd,הכנסות[תאריך],\">=\"&DtMiddle+1)","v":{"v":0,"d":"₪ 0.00"}},{"$f":"SUMIFS(הכנסות[סכום],הכנסות[תאריך],\"<=\"&DtEnd,הכנסות[תאריך],\">=\"&DtMiddle+1)","v":{"v":3100,"d":"₪ 3,100.00"}},{"$f":"SUMIFS(הכנסות[סכום],הכנסות[תאריך],\"<=\"&DtEnd,הכנסות[תאריך],\">=\"&DtMiddle+1)","v":{"v":3100,"d":"₪ 3,100.00"}},{"$f":"SUMIFS(הכנסות[סכום],הכנסות[תאריך],\"<=\"&DtEnd,הכנסות[תאריך],\">=\"&DtMiddle+1)","v":{"v":500,"d":"₪ 500.00"}},{"$f":"SUMIFS(הכנסות[סכום],הכנסות[תאריך],\"<=\"&DtEnd,הכנסות[תאריך],\">=\"&DtMiddle+1)","v":{"v":0,"d":"₪ 0.00"}},{"$f":"SUMIFS(הכנסות[סכום],הכנסות[תאריך],\"<=\"&DtEnd,הכנסות[תאריך],\">=\"&DtMiddle+1)","v":{"v":0,"d":"₪ 0.00"}},{"$f":"SUMIFS(הכנסות[סכום],הכנסות[תאריך],\"<=\"&DtEnd,הכנסות[תאריך],\">=\"&DtMiddle+1)","v":{"v":0,"d":"₪ 0.00"}},{"$f":"SUMIFS(הכנסות[סכום],הכנסות[תאריך],\"<=\"&DtEnd,הכנסות[תאריך],\">=\"&DtMiddle+1)","v":{"v":0,"d":"₪ 0.00"}},{"$f":"SUMIFS(הכנסות[סכום],הכנסות[תאריך],\"<=\"&DtEnd,הכנסות[תאריך],\">=\"&DtMiddle+1)","v":{"v":0,"d":"₪ 0.00"}},{"$f":"SUMIFS(הכנסות[סכום],הכנסות[תאריך],\"<=\"&DtEnd,הכנסות[תאריך],\">=\"&DtMiddle+1)","v":{"v":0,"d":"₪ 0.00"}},{"$f":"SUMIFS(הכנסות[סכום],הכנסות[תאריך],\"<=\"&DtEnd,הכנסות[תאריך],\">=\"&DtMiddle+1)","v":{"v":0,"d":"₪ 0.00"}}]
[null,"הוצאות בימים 15-1",{"$f":"SUMIFS(הוצאות[סכום],הוצאות[תאריך],\"<=\"&DtMiddle+1,הוצאות[תאריך],\">=\"&DtStart)","v":{"v":0,"d":"₪ 0.00"}},{"$f":"SUMIFS(הוצאות[סכום],הוצאות[תאריך],\"<=\"&DtMiddle+1,הוצאות[תאריך],\">=\"&DtStart)","v":{"v":0,"d":"₪ 0.00"}},{"$f":"SUMIFS(הוצאות[סכום],הוצאות[תאריך],\"<=\"&DtMiddle+1,הוצאות[תאריך],\">=\"&DtStart)","v":{"v":1150,"d":"₪ 1,150.00"}},{"$f":"SUMIFS(הוצאות[סכום],הוצאות[תאריך],\"<=\"&DtMiddle+1,הוצאות[תאריך],\">=\"&DtStart)","v":{"v":5225,"d":"₪ 5,225.00"}},{"$f":"SUMIFS(הוצאות[סכום],הוצאות[תאריך],\"<=\"&DtMiddle+1,הוצאות[תאריך],\">=\"&DtStart)","v":{"v":3242,"d":"₪ 3,242.00"}},{"$f":"SUMIFS(הוצאות[סכום],הוצאות[תאריך],\"<=\"&DtMiddle+1,הוצאות[תאריך],\">=\"&DtStart)","v":{"v":0,"d":"₪ 0.00"}},{"$f":"SUMIFS(הוצאות[סכום],הוצאות[תאריך],\"<=\"&DtMiddle+1,הוצאות[תאריך],\">=\"&DtStart)","v":{"v":0,"d":"₪ 0.00"}},{"$f":"SUMIFS(הוצאות[סכום],הוצאות[תאריך],\"<=\"&DtMiddle+1,הוצאות[תאריך],\">=\"&DtStart)","v":{"v":0,"d":"₪ 0.00"}},{"$f":"SUMIFS(הוצאות[סכום],הוצאות[תאריך],\"<=\"&DtMiddle+1,הוצאות[תאריך],\">=\"&DtStart)","v":{"v":0,"d":"₪ 0.00"}},{"$f":"SUMIFS(הוצאות[סכום],הוצאות[תאריך],\"<=\"&DtMiddle+1,הוצאות[תאריך],\">=\"&DtStart)","v":{"v":0,"d":"₪ 0.00"}},{"$f":"SUMIFS(הוצאות[סכום],הוצאות[תאריך],\"<=\"&DtMiddle+1,הוצאות[תאריך],\">=\"&DtStart)","v":{"v":0,"d":"₪ 0.00"}},{"$f":"SUMIFS(הוצאות[סכום],הוצאות[תאריך],\"<=\"&DtMiddle+1,הוצאות[תאריך],\">=\"&DtStart)","v":{"v":0,"d":"₪ 0.00"}}]
[null,"הוצאות בימים 16-סוף החודש",{"$f":"SUMIFS(הוצאות[סכום],הוצאות[תאריך],\"<=\"&DtEnd,הוצאות[תאריך],\">=\"&DtMiddle+1)","v":{"v":0,"d":"₪ 0.00"}},{"$f":"SUMIFS(הוצאות[סכום],הוצאות[תאריך],\"<=\"&DtEnd,הוצאות[תאריך],\">=\"&DtMiddle+1)","v":{"v":75,"d":"₪ 75.00"}},{"$f":"SUMIFS(הוצאות[סכום],הוצאות[תאריך],\"<=\"&DtEnd,הוצאות[תאריך],\">=\"&DtMiddle+1)","v":{"v":200,"d":"₪ 200.00"}},{"$f":"SUMIFS(הוצאות[סכום],הוצאות[תאריך],\"<=\"&DtEnd,הוצאות[תאריך],\">=\"&DtMiddle+1)","v":{"v":900,"d":"₪ 900.00"}},{"$f":"SUMIFS(הוצאות[סכום],הוצאות[תאריך],\"<=\"&DtEnd,הוצאות[תאריך],\">=\"&DtMiddle+1)","v":{"v":500,"d":"₪ 500.00"}},{"$f":"SUMIFS(הוצאות[סכום],הוצאות[תאריך],\"<=\"&DtEnd,הוצאות[תאריך],\">=\"&DtMiddle+1)","v":{"v":0,"d":"₪ 0.00"}},{"$f":"SUMIFS(הוצאות[סכום],הוצאות[תאריך],\"<=\"&DtEnd,הוצאות[תאריך],\">=\"&DtMiddle+1)","v":{"v":0,"d":"₪ 0.00"}},{"$f":"SUMIFS(הוצאות[סכום],הוצאות[תאריך],\"<=\"&DtEnd,הוצאות[תאריך],\">=\"&DtMiddle+1)","v":{"v":0,"d":"₪ 0.00"}},{"$f":"SUMIFS(הוצאות[סכום],הוצאות[תאריך],\"<=\"&DtEnd,הוצאות[תאריך],\">=\"&DtMiddle+1)","v":{"v":0,"d":"₪ 0.00"}},{"$f":"SUMIFS(הוצאות[סכום],הוצאות[תאריך],\"<=\"&DtEnd,הוצאות[תאריך],\">=\"&DtMiddle+1)","v":{"v":0,"d":"₪ 0.00"}},{"$f":"SUMIFS(הוצאות[סכום],הוצאות[תאריך],\"<=\"&DtEnd,הוצאות[תאריך],\">=\"&DtMiddle+1)","v":{"v":0,"d":"₪ 0.00"}},{"$f":"SUMIFS(הוצאות[סכום],הוצאות[תאריך],\"<=\"&DtEnd,הוצאות[תאריך],\">=\"&DtMiddle+1)","v":{"v":0,"d":"₪ 0.00"}}]

{"sheet":"הוצאות והכנסות","index":2,"n_rows":36,"n_cols":9,"rows_kept":36,"merged":[[0,1,0,6],[0,7,0,8]]}
["צור רשימה של 'הכנסות והוצאות' בגליון עבודה זה. הוראות מועילות לגבי אופן השימוש בגליון עבודה זה מופיעות בתאים שבעמודה זו. הכותרת של חוברת העבודה נמצאת בתא משמאל וכותרת גליון העבודה בתא H1.",{"$f":"Semi_Monthly_Home_Budget_Title","v":"תקציב ביתי חצי-חודשי"},{"$nulls":5},"הכנסות והוצאות"]
["התווית 'הכנסות' נמצאת בתא משמאל והתווית 'הוצאות' נמצאת בתא F2.","הכנסות",{"$nulls":3},"הוצאות"]
["הזן פרטים בטבלה 'הכנסות' החל מהתא משמאל ובטבלה 'הוצאות' החל מתא F3.","תאריך","תיאור","סכום",null,"תאריך","קטגוריה","תיאור","סכום"]
[null,{"$f":"TODAY()","v":"2022-05-16"},"בונוס",{"v":500,"d":"₪ 500.00"},null,{"$f":"TODAY()","v":"2022-05-16"},"רפואי","ביטוח",{"v":500,"d":"₪ 500.00"}]
[null,{"$f":"TODAY()-14","v":"2022-05-02"},"תלוש המשכורת של דייוויד",{"v":1300,"d":"₪ 1,300.00"},null,{"$f":"TODAY()-7","v":"2022-05-09"},"משק בית","משכנתה",{"v":1000,"d":"₪ 1,000.00"}]
[null,{"$f":"TODAY()-14","v":"2022-05-02"},"תלוש המשכורת של פאט",{"v":1300,"d":"₪ 1,300.00"},null,"2022-05-09","משק בית","חשמל",{"v":100,"d":"₪ 100.00"}]
[null,{"$f":"TODAY()-28","v":"2022-04-18"},"תלוש המשכורת של דייוויד",{"v":1500,"d":"₪ 1,500.00"},null,"2022-05-09","משק בית","מים/ביוב",{"v":50,"d":"₪ 50.00"}]
[null,{"$f":"TODAY()-28","v":"2022-04-18"},"תלוש המשכורת של פאט",{"v":1600,"d":"₪ 1,600.00"},null,"2022-05-09","משק בית","אשפה",{"v":25,"d":"₪ 25.00"}]
[null,{"$f":"TODAY()-42","v":"2022-04-04"},"תלוש המשכורת של דייוויד",{"v":1300,"d":"₪ 1,300.00"},null,"2022-05-09","משק בית","טלפון נייד",{"v":100,"d":"₪ 100.00"}]
[null,{"$f":"TODAY()-42","v":"2022-04-04"},"תלוש המשכורת של פאט",{"v":1300,"d":"₪ 1,300.00"},null,"2022-05-09","משק בית","טלפון נייד",{"v":30,"d":"₪ 30.00"}]
[null,{"$f":"TODAY()-56","v":"2022-03-21"},"תלוש המשכורת של דייוויד",{"v":1500,"d":"₪ 1,500.00"},null,"2022-05-09","משק בית","משכנתה",{"v":50,"d":"₪ 50.00"}]
[null,{"$f":"TODAY()-56","v":"2022-03-21"},"תלוש המשכורת של פאט",{"v":1600,"d":"₪ 1,600.00"},null,"2022-05-09","משק בית","טלפון נייד",{"v":50,"d":"₪ 50.00"}]
[null,{"$f":"TODAY()-70","v":"2022-03-07"},"תלוש המשכורת של דייוויד",{"v":1300,"d":"₪ 1,300.00"},null,{"$f":"TODAY()-7","v":"2022-05-09"},"משק בית","טלפון נייד",{"v":25,"d":"₪ 25.00"}]
[{"$nulls":5},{"$f":"TODAY()-8","v":"2022-05-08"},"משק בית","חשמל",{"v":100,"d":"₪ 100.00"}]
[{"$nulls":5},{"$f":"TODAY()-9","v":"2022-05-07"},"בידור","סרטים",{"v":37,"d":"₪ 37.00"}]
[{"$nulls":5},{"$f":"TODAY()-10","v":"2022-05-06"},"מזון","מצרכים",{"v":350,"d":"₪ 350.00"}]
[{"$nulls":5},{"$f":"TODAY()-11","v":"2022-05-05"},"מזון","ארוחות מחוץ לבית",{"v":75,"d":"₪ 75.00"}]
[{"$nulls":5},{"$f":"TODAY()-12","v":"2022-05-04"},"ילדים","כסף לארוחת צהריים",{"v":150,"d":"₪ 150.00"}]
[{"$nulls":5},{"$f":"TODAY()-13","v":"2022-05-03"},"חשבונות השקעה","חסכונות",{"v":250,"d":"₪ 250.00"}]
[{"$nulls":5},{"$f":"TODAY()-14","v":"2022-05-02"},"חשבונות השקעה","חשבון השקעה",{"v":250,"d":"₪ 250.00"}]
[{"$nulls":5},{"$f":"TODAY()-15","v":"2022-05-01"},"אישי","מכון בריאות/כושר",{"v":100,"d":"₪ 100.00"}]
[{"$nulls":5},{"$f":"TODAY()-16","v":"2022-04-30"},"חיות מחמד","מזון",{"v":50,"d":"₪ 50.00"}]
[{"$nulls":5},{"$f":"TODAY()-20","v":"2022-04-26"},"חיות מחמד","טיפוח",{"v":50,"d":"₪ 50.00"}]
[{"$nulls":5},{"$f":"TODAY()-20","v":"2022-04-26"},"חיות מחמד","אחר",{"v":50,"d":"₪ 50.00"}]
[{"$nulls":5},{"$f":"TODAY()-25","v":"2022-04-21"},"תחבורה","תשלום רכב 1 ",{"v":300,"d":"₪ 300.00"}]
[{"$nulls":5},{"$f":"TODAY()-25","v":"2022-04-21"},"תחבורה","תשלום רכב 2 ",{"v":350,"d":"₪ 350.00"}]
[{"$nulls":5},{"$f":"TODAY()-25","v":"2022-04-21"},"תחבורה","ביטוח רכב",{"v":50,"d":"₪ 50.00"}]
[{"$nulls":5},{"$f":"TODAY()-30","v":"2022-04-16"},"תחבורה","דלק",{"v":50,"d":"₪ 50.00"}]
[{"$nulls":5},{"$f":"TODAY()-31","v":"2022-04-15"},"תחבורה","דלק",{"v":25,"d":"₪ 25.00"}]
[{"$nulls":5},{"$f":"TODAY()-42","v":"2022-04-04"},"תחבורה","תשלום רכב 2 ",{"v":150,"d":"₪ 150.00"}]
[{"$nulls":5},{"$f":"TODAY()-45","v":"2022-04-01"},"משק בית","משכנתה",{"v":5000,"d":"₪ 5,000.00"}]
[{"$nulls":5},{"$f":"TODAY()-50","v":"2022-03-27"},"משק בית","חשמל",{"v":200,"d":"₪ 200.00"}]
[{"$nulls":5},{"$f":"TODAY()-65","v":"2022-03-12"},"משק בית","טלפון נייד",{"v":100,"d":"₪ 100.00"}]
[{"$nulls":5},{"$f":"TODAY()-70","v":"2022-03-07"},"משק בית","אשפה",{"v":50,"d":"₪ 50.00"}]
[{"$nulls":5},{"$f":"TODAY()-75","v":"2022-03-02"},"משק בית","משכנתה",{"v":1000,"d":"₪ 1,000.00"}]
[{"$nulls":5},{"$f":"TODAY()-78","v":"2022-02-27"},"בידור","סרטים",{"v":75,"d":"₪ 75.00"}]

{"sheet":"דוח תקציב","index":3,"n_rows":26,"n_cols":6,"rows_kept":26,"merged":[[0,1,0,4],[1,1,1,3],[4,3,4,5]]}
["צור 'דוח תקציב' בגליון עבודה זה. הוראות מועילות לגבי אופן השימוש בגליון עבודה זה מופיעות בתאים שבעמודה זו. כותרת חוברת העבודה נמצאת בתא משמאל וכותרת גליון העבודה נמצאת בתא F1.",{"$f":"Semi_Monthly_Home_Budget_Title","v":"תקציב ביתי חצי-חודשי"},{"$nulls":3},"דוח תקציב"]
["בחר 'שנים', 'רבעונים', 'חודשים' או 'ימים' והשתמש במחוון בתא משמאל כדי לקבל את ה- PivotTable 'הוצאות' עבור התקופה שנבחרה. כלי הפריסה 'קטגוריה' לסינון נתוני PivotTable נמצא בתא E2 וכלי הפריסה 'תיאור' בתא F2.","ציר הזמן לסינון נמצא בתא זה.",null,null,"כלי פריסה לסינון נתוני PivotTable לפי קטגוריה נמצא בתא זה.","כלי פריסה לסינון נתוני PivotTable לפי תיאור נמצא בתא זה."]
["העצה מופיעה בתא משמאל.","הקש Shift+F10 ב- PivotTable 'הוצאות' ולאחר מכן בחר רענן כדי לעדכן את הנתונים בגיליון זה, או בחר רענן תחת הכרטיסיה 'ניתוח'."]
["התווית 'הוצאות' נמצאת בתא משמאל.","הוצאות"]
["ה- PivotTable שמציגה את ההוצאות מתחילה בתא משמאל. התווית 'סכומים כוללים של קטגוריות' נמצאת בתא D4.","תוויות שורה","סכום של סכום","סכומי קטגוריה"]
["תרשים עוגה המשווה בין כל הסכומים הכוללים של הקטגוריות נמצא בתא D6.","תשלום רכב 1 ",{"v":300,"d":"₪ 300.00"}]
[null,"אחר",{"v":50,"d":"₪ 50.00"}]
[null,"ארוחות מחוץ לבית",{"v":75,"d":"₪ 75.00"}]
[null,"אשפה",{"v":75,"d":"₪ 75.00"}]
[null,"ביטוח",{"v":500,"d":"₪ 500.00"}]
[null,"ביטוח רכב",{"v":50,"d":"₪ 50.00"}]
[null,"דלק",{"v":75,"d":"₪ 75.00"}]
[null,"חסכונות",{"v":250,"d":"₪ 250.00"}]
[null,"חשבון השקעה",{"v":250,"d":"₪ 250.00"}]
[null,"חשמל",{"v":400,"d":"₪ 400.00"}]
[null,"טיפוח",{"v":50,"d":"₪ 50.00"}]
[null,"טלפון נייד",{"v":305,"d":"₪ 305.00"}]
[null,"כסף לארוחת צהריים",{"v":150,"d":"₪ 150.00"}]
[null,"מזון",{"v":50,"d":"₪ 50.00"}]
[null,"מכון בריאות/כושר",{"v":100,"d":"₪ 100.00"}]
[null,"מצרכים",{"v":350,"d":"₪ 350.00"}]
[null,"משכנתה",{"v":7050,"d":"₪ 7,050.00"}]
[null,"סרטים",{"v":112,"d":"₪ 112.00"}]
[null,"תשלום רכב 2 ",{"v":500,"d":"₪ 500.00"}]
[null,"מים/ביוב",{"v":50,"d":"₪ 50.00"}]
[null,"סכום כולל",{"v":10742,"d":"₪ 10,742.00"}]

{"sheet":"רשימות נתונים","index":4,"n_rows":8,"n_cols":13,"rows_kept":8,"merged":[[0,1,0,11]]}
["הזן בגליון עבודה זה נתוני 'קטגוריה' כדי לאכלס את הרשימות הנפתחות בטבלה 'הוצאות' בגליון העבודה 'הוצאות והכנסות'. שנה את שמות הקטגוריות או את התיאורים שמתחת לכל קטגוריה כדי לעדכן את הרשימות. הוראות מועילות לגבי אופן השימוש בגליון עבודה זה מופיעות בתאים שבעמודה זו. כותרת חוברת העבודה נמצאת בתא משמאל וכותרת גליון העבודה נמצאת בתא M1.",{"$f":"Semi_Monthly_Home_Budget_Title","v":"תקציב ביתי חצי-חודשי"},{"$nulls":10},"רשימות נתונים"]
["העצה מופיעה בתא משמאל.","הגדרה         נתוני 'קטגוריה' להלן מאכלסים את הרשימות הנפתחות בטבלה 'הוצאות' בגיליון 'הוצאות והכנסות'. שנה את שמות הקטגוריות או את התיאורים מתחת לכל קטגוריה כדי לעדכן את הרשימות."]
["הזן או שנה את שמות הקטגוריות או את התיאורים מתחת לכל קטגוריה בטבלה, החל מהתא משמאל.","משק בית","בידור","מזון","מתנות/תרומות","ילדים","חשבונות השקעה","רפואי","אחר","אישי","חיות מחמד","מסים/משפטי","תחבורה"]
[null,"משכנתה","סרטים","מצרכים","צדקה 1","ביגוד","חשבון חיסכון אישי לפנסיה (IRA)","רופא/מרפאה","אחר","ביגוד","מזון","פדרלי","תשלום רכב 1 "]
[null,"חשמל","וידאו/סרטים","ארוחות מחוץ לבית","צדקה 2","משחקים","חסכונות","ביטוח","תשלומים לארגונים","שיער/ציפורניים","מוצרי אספקה","של המדינה","תשלום רכב 2 "]
[null,"מים/ביוב","מוזיקה",null,"צדקה 3","כסף לארוחת צהריים","עו\"ש",null,null,"ניקוי יבש","רפואי","מקומי","ביטוח רכב"]
[null,"אשפה","מופעים/תאטרון",null,"מתנה","דמי חבר/תשלומים קבועים","פנסיה",null,null,"מכון בריאות/כושר","טיפוח","אחר","רישוי/רישום"]
[null,"טלפון נייד","אירועי ספורט",null,null,"ציוד לבית הספר","חשבון השקעה",null,null,"קניות","אחר","עורך דין","דלק"]

{"sheet":"PivotTable של קטגוריה","index":5,"n_rows":13,"n_cols":13,"rows_kept":13,"hidden":true}
[null,"תקציב ביתי חצי-חודשי",{"$nulls":10},"ציר קטגוריה"]
[null,"PivotTable זו היא מקור הנתונים עבור ה- PivotChart 'סכומים כוללים של קטגוריות' ב'דוח תקציב'. "]
[null,"תוויות שורה","סכום של סכום"]
[null,"חיות מחמד",{"v":150,"d":"₪ 150"}]
[null,"בידור",{"v":112,"d":"₪ 112"}]
[null,"מזון",{"v":425,"d":"₪ 425"}]
[null,"משק בית",{"v":7880,"d":"₪ 7,880"}]
[null,"חשבונות השקעה",{"v":500,"d":"₪ 500"}]
[null,"רפואי",{"v":500,"d":"₪ 500"}]
[null,"אישי",{"v":100,"d":"₪ 100"}]
[null,"ילדים",{"v":150,"d":"₪ 150"}]
[null,"תחבורה",{"v":925,"d":"₪ 925"}]
[null,"סכום כולל",{"v":10742,"d":"₪ 10,742"}]